[Event "10th LBHM Open 2024"]
[Site "Pune"]
[Date "2024.05.21"]
[Round "4.10"]
[White "Arpith S Bijoy"]
[Black "Dave, Kantilal"]
[Result "1-0"]
[ECO "E17"]
[WhiteElo "2011"]
[BlackElo "1791"]
[PlyCount "67"]
[EventDate "2024.05.21"]
[EventType "swiss"]
[EventCountry "IND"]
[TimeControl "5400+30"]

1. b3 {[%emt 0:00:13]} d6 {[%emt 0:00:14]} 2. Bb2 {[%emt 0:00:28]} e6 {[%emt 0:00:12]} 3. Nf3 {[%emt 0:00:45]} Nf6 {[%emt 0:00:10]} 4. d4 {[%emt 0:00:54]} b6 {[%emt 0:00:07]} 5. g3 {[%emt 0:00:08]} Bb7 {[%emt 0:00:22]} 6. Bg2 {[%emt 0:00:09]} Nbd7 {[%emt 0:00:34]} 7. O-O {[%emt 0:00:19]} Be7 {[%emt 0:00:29]} 8. c4 {[%emt 0:00:20]} O-O {[%emt 0:00:44]} 9. Nc3 {[%emt 0:01:32]} d5 {[%emt 0:00:33]} 10. Rc1 {[%emt 0:23:32]} dxc4 {[%emt 0:00:18]} 11. bxc4 {[%emt 0:00:06]} Re8 {[%emt 0:03:55]} 12. Re1 {[%emt 0:05:43]} Ne4 {[%emt 0:00:56]} 13. Qd3 {[%emt 0:00:43]} Nxc3 {[%emt 0:01:12]} 14. Bxc3 {[%emt 0:00:17]} Rb8 {[%emt 0:00:45]} 15. e4 {[%emt 0:01:28]} Bf6 {[%emt 0:04:08]} 16. e5 {[%emt 0:11:05]} Be7 {[%emt 0:00:08]} 17. Ba1 {[%emt 0:00:54]} Nf8 {[%emt 0:01:55]} 18. Red1 {[%emt 0:03:43]} Qd7 {[%emt 0:09:51]} 19. d5 {[%emt 0:07:16]} Bc5 {[%emt 0:02:35]} 20. Ng5 {[%emt 0:03:00]} Qe7 {[%emt 0:09:22]} 21. Ne4 {[%emt 0:00:37]} Bb4 {[%emt 0:00:18]} 22. a3 {[%emt 0:00:36]} Bc5 {[%emt 0:01:55]} 23. Qd2 {[%emt 0:07:07]} Ng6 {[%emt 0:00:34]} 24. d6 {[%emt 0:02:45]} cxd6 {[%emt 0:05:33]} 25. exd6 {[%emt 0:00:12]} Qf8 {[%emt 0:00:11]} 26. Nxc5 {[%emt 0:02:40]} bxc5 {[%emt 0:00:13]} 27. d7 {[%emt 0:00:11]} Red8 {[%emt 0:02:13]} 28. Rb1 {[%emt 0:00:02]} Bxg2 {[%emt 0:09:06]} 29. Rxb8 {[%emt 0:00:04]} Rxb8 {[%emt 0:06:10]} 30. d8=Q {[%emt 0:00:03]} Rxd8 {[%emt 0:00:21]} 31. Qxd8 {[%emt 0:00:03]} Bf3 {[%emt 0:00:37]} 32. Rd3 {[%emt 0:01:06]} Be2 {[%emt 0:00:33]} 33. Rd2 {[%emt 0:00:01]} Bxc4 {[%emt 0:00:10]} 34. Qc7 {[%emt 0:00:03]} 1-0

[Event "10th LBHM Open 2024"]
[Site "Pune"]
[Date "2024.05.21"]
[Round "5.1"]
[White "Bhoir Paras Dilip"]
[Black "Ghosh, Diptayan"]
[Result "0-1"]
[ECO "C79"]
[WhiteElo "1968"]
[BlackElo "2564"]
[PlyCount "122"]
[EventDate "2024.05.21"]
[EventType "swiss"]
[EventCountry "IND"]
[TimeControl "5400+30"]

1. e4 {[%emt 0:00:04]} e5 {[%emt 0:01:51]} 2. Nf3 {[%emt 0:00:18]} Nc6 {[%emt 0:00:05]} 3. Bb5 {[%emt 0:00:11]} a6 {[%emt 0:00:17]} 4. Ba4 {[%emt 0:00:04]} Nf6 {[%emt 0:00:06]} 5. O-O {[%emt 0:00:09]} d6 {[%emt 0:00:05]} 6. Re1 {[%emt 0:01:55]} Bd7 {[%emt 0:00:05]} 7. c3 {[%emt 0:01:45]} g6 {[%emt 0:00:18]} 8. d4 {[%emt 0:05:32]} Bg7 {[%emt 0:00:05]} 9. Bxc6 {[%emt 0:11:40]} Bxc6 {[%emt 0:00:05]} 10. dxe5 {[%emt 0:00:23]} Nxe4 {[%emt 0:00:07]} 11. exd6 {[%emt 0:07:21]} O-O {[%emt 0:00:07]} 12. d7 {[%emt 0:07:54]} Nc5 {[%emt 0:00:00]} 13. Bf4 {[%emt 0:17:25]} Nxd7 14. Nd4 {[%emt 0:05:41]} Nc5 {[%emt 0:32:52]} 15. Nxc6 {[%emt 0:04:37]} bxc6 {[%emt 0:00:05]} 16. Qf3 {[%emt 0:04:02]} Qd5 {[%emt 0:08:04]} 17. Qxd5 {[%emt 0:10:57]} cxd5 {[%emt 0:00:08]} 18. Bxc7 {[%emt 0:00:44]} Nd3 {[%emt 0:01:02]} 19. Rd1 {[%emt 0:01:32]} Rfe8 {[%emt 0:05:04]} 20. Na3 {[%emt 0:02:36]} Nxb2 {[%emt 0:00:09]} 21. Rxd5 {[%emt 0:00:44]} Bxc3 {[%emt 0:03:21]} 22. Ba5 {[%emt 0:07:36]} Bg7 {[%emt 0:04:39]} 23. Re1 {[%emt 0:00:52]} Rxe1+ {[%emt 0:02:42]} 24. Bxe1 {[%emt 0:00:06]} Bf8 {[%emt 0:00:03]} 25. Nc2 {[%emt 0:02:37]} Rc8 {[%emt 0:02:03]} 26. Rd2 {[%emt 0:00:32]} Bh6 {[%emt 0:00:24]} 27. Re2 {[%emt 0:00:09]} Nd3 {[%emt 0:00:14]} 28. Nd4 {[%emt 0:05:08]} Rc1 {[%emt 0:02:55]} 29. Nf3 {[%emt 0:00:06]} Bf8 {[%emt 0:02:55]} 30. Kf1 {[%emt 0:01:17]} Bb4 {[%emt 0:01:25]} 31. Re3 {[%emt 0:00:11]} Nxe1 {[%emt 0:00:21]} 32. Nxe1 {[%emt 0:00:05]} Ra1 {[%emt 0:00:13]} 33. Re2 {[%emt 0:01:00]} h5 {[%emt 0:09:18]} 34. f4 {[%emt 0:01:41]} Bxe1 {[%emt 0:03:34]} 35. Rxe1 {[%emt 0:00:04]} Rxa2 {[%emt 0:00:02]} 36. Re8+ {[%emt 0:00:20]} Kg7 {[%emt 0:00:01]} 37. Ra8 {[%emt 0:00:06]} Kf6 {[%emt 0:00:09]} 38. Ra7 {[%emt 0:00:30]} h4 {[%emt 0:02:57]} 39. h3 {[%emt 0:01:08]} a5 {[%emt 0:00:23]} 40. Ra6+ {[%emt 0:00:41]} Kf5 {[%emt 0:00:06]} 41. Ra7 {[%emt 0:00:03]} f6 {[%emt 0:01:41]} 42. Ra6 {[%emt 0:00:08]} a4 {[%emt 0:00:24]} 43. Kg1 {[%emt 0:00:12]} a3 {[%emt 0:00:34]} 44. Kh2 {[%emt 0:00:11]} Ra1 {[%emt 0:00:42]} 45. Ra4 {[%emt 0:00:10]} a2 {[%emt 0:04:12]} 46. Ra6 {[%emt 0:00:32]} Ke4 {[%emt 0:00:04]} 47. Re6+ {[%emt 0:00:53]} Kd3 {[%emt 0:00:56]} 48. Rd6+ {[%emt 0:00:56]} Kc4 {[%emt 0:00:41]} 49. Ra6 {[%emt 0:00:18]} f5 {[%emt 0:00:10]} 50. Ra8 {[%emt 0:00:34]} Kd5 {[%emt 0:00:32]} 51. Ra4 {[%emt 0:00:38]} Kc5 {[%emt 0:00:01]} 52. Ra5+ {[%emt 0:00:16]} Kd4 {[%emt 0:00:04]} 53. Ra6 {[%emt 0:00:21]} Ke4 {[%emt 0:00:16]} 54. Ra4+ {[%emt 0:00:14]} Ke3 {[%emt 0:00:02]} 55. Ra3+ {[%emt 0:00:18]} Kxf4 {[%emt 0:00:06]} 56. Ra4+ {[%emt 0:00:12]} Ke3 {[%emt 0:02:26]} 57. Ra6 {[%emt 0:01:05]} g5 {[%emt 0:00:20]} 58. Ra5 {[%emt 0:00:53]} f4 {[%emt 0:08:13]} 59. Ra8 {[%emt 0:01:07]} Kf2 {[%emt 0:00:49]} 60. Ra3 {[%emt 0:01:13]} Kf1 {[%emt 0:00:28]} 61. Kh1 {[%emt 0:00:29]} g4 {[%emt 0:01:54]} 0-1

[Event "10th LBHM Open 2024"]
[Site "Pune"]
[Date "2024.05.21"]
[Round "5.2"]
[White "Aronyak Ghosh"]
[Black "Gawai Siddhant"]
[Result "1-0"]
[ECO "E32"]
[WhiteElo "2536"]
[BlackElo "1931"]
[PlyCount "97"]
[EventDate "2024.05.21"]
[EventType "swiss"]
[EventCountry "IND"]
[TimeControl "5400+30"]

1. Nf3 {[%emt 0:01:11]} Nf6 {[%emt 0:00:07]} 2. c4 {[%emt 0:00:55]} e6 {[%emt 0:00:11]} 3. Nc3 {[%emt 0:00:53]} Bb4 {[%emt 0:01:44]} 4. Qc2 {[%emt 0:02:25]} O-O {[%emt 0:07:38]} 5. a3 {[%emt 0:01:56]} Bxc3 {[%emt 0:00:25]} 6. Qxc3 {[%emt 0:00:05]} d6 {[%emt 0:07:30]} 7. b4 {[%emt 0:00:58]} Nbd7 {[%emt 0:02:20]} 8. Bb2 {[%emt 0:00:56]} c5 {[%emt 0:02:52]} 9. e3 {[%emt 0:11:22]} b6 {[%emt 0:08:19]} 10. d4 {[%emt 0:03:23]} Bb7 {[%emt 0:06:08]} 11. dxc5 {[%emt 0:02:41]} bxc5 {[%emt 0:05:58]} 12. b5 d5 {[%emt 0:15:09]} 13. Be2 {[%emt 0:21:37]} Nb6 {[%emt 0:05:35]} 14. O-O {[%emt 0:00:38]} Na4 {[%emt 0:01:30]} 15. Qc2 {[%emt 0:00:25]} Nxb2 {[%emt 0:00:05]} 16. Qxb2 {[%emt 0:00:59]} Ne4 {[%emt 0:03:43]} 17. Rfc1 {[%emt 0:02:59]} Rc8 {[%emt 0:03:55]} 18. Rc2 {[%emt 0:05:57]} Qb6 {[%emt 0:03:24]} 19. a4 {[%emt 0:01:39]} Qa5 20. Bd3 {[%emt 0:04:41]} Nd6 {[%emt 0:05:23]} 21. Nd2 {[%emt 0:01:08]} Rfd8 {[%emt 0:01:57]} 22. Qc3 {[%emt 0:04:42]} Qc7 {[%emt 0:03:56]} 23. Rac1 {[%emt 0:00:58]} Qe7 {[%emt 0:02:07]} 24. Qa3 {[%emt 0:02:39]} Ba8 {[%emt 0:06:12]} 25. Bf1 {[%emt 0:04:17]} Rc7 {[%emt 0:01:18]} 26. Qb2 {[%emt 0:05:05]} Rdc8 {[%emt 0:01:16]} 27. Qe5 {[%emt 0:00:11]} f6 {[%emt 0:01:07]} 28. Qb2 {[%emt 0:00:12]} e5 {[%emt 0:02:04]} 29. cxd5 {[%emt 0:00:21]} Bxd5 {[%emt 0:00:03]} 30. Qa3 {[%emt 0:02:20]} Nb7 {[%emt 0:02:18]} 31. h3 {[%emt 0:01:49]} Kf8 {[%emt 0:00:36]} 32. Nc4 {[%emt 0:01:24]} Bxc4 {[%emt 0:00:39]} 33. Bxc4 {[%emt 0:01:17]} Na5 {[%emt 0:00:02]} 34. Qd3 {[%emt 0:02:20]} Nxc4 {[%emt 0:00:15]} 35. Rxc4 {[%emt 0:00:03]} g6 {[%emt 0:00:14]} 36. Rd1 {[%emt 0:00:20]} Rb8 {[%emt 0:01:07]} 37. Qc3 {[%emt 0:00:38]} Rbc8 {[%emt 0:01:16]} 38. Rd5 {[%emt 0:00:05]} Kg7 {[%emt 0:00:26]} 39. e4 {[%emt 0:00:14]} Kh6 {[%emt 0:00:34]} 40. h4 {[%emt 0:00:37]} Kg7 {[%emt 0:00:33]} 41. g3 {[%emt 0:00:04]} h5 {[%emt 0:00:28]} 42. Kg2 {[%emt 0:00:06]} Kh6 {[%emt 0:00:17]} 43. a5 {[%emt 0:01:54]} Kg7 {[%emt 0:00:42]} 44. b6 {[%emt 0:00:42]} axb6 {[%emt 0:00:18]} 45. axb6 {[%emt 0:00:01]} Rc6 {[%emt 0:00:46]} 46. Qd2 {[%emt 0:00:02]} Qe6 {[%emt 0:00:18]} 47. b7 {[%emt 0:00:31]} Rb8 {[%emt 0:00:05]} 48. Rd7+ {[%emt 0:00:08]} Kg8 {[%emt 0:00:06]} 49. Rd8+ {[%emt 0:00:04]} 1-0

[Event "10th LBHM Open 2024"]
[Site "Pune"]
[Date "2024.05.21"]
[Round "5.3"]
[White "Shaun Deon Sequeira"]
[Black "Neelash Saha"]
[Result "0-1"]
[ECO "B12"]
[WhiteElo "1926"]
[BlackElo "2483"]
[PlyCount "64"]
[EventDate "2024.05.21"]
[EventType "swiss"]
[EventCountry "IND"]
[TimeControl "5400+30"]

1. e4 {[%emt 0:00:07]} c6 {[%emt 0:00:53]} 2. d4 {[%emt 0:00:10]} d5 {[%emt 0:00:03]} 3. e5 {[%emt 0:00:08]} Bf5 {[%emt 0:00:08]} 4. h4 {[%emt 0:00:07]} h6 {[%emt 0:02:15]} 5. g4 {[%emt 0:01:42]} Be4 {[%emt 0:00:15]} 6. f3 {[%emt 0:00:07]} Bh7 {[%emt 0:00:05]} 7. e6 {[%emt 0:00:21]} Qd6 {[%emt 0:06:36]} 8. exf7+ {[%emt 0:00:06]} Kxf7 {[%emt 0:00:02]} 9. f4 {[%emt 0:00:33]} Qe6+ {[%emt 0:01:17]} 10. Qe2 {[%emt 0:12:28]} Qxe2+ {[%emt 0:01:35]} 11. Bxe2 {[%emt 0:00:54]} Bxc2 {[%emt 0:00:13]} 12. Nf3 {[%emt 0:00:25]} Nd7 {[%emt 0:01:52]} 13. Nc3 {[%emt 0:03:11]} e6 {[%emt 0:03:17]} 14. Be3 {[%emt 0:03:54]} Ngf6 {[%emt 0:01:40]} 15. Ne5+ {[%emt 0:02:51]} Ke8 {[%emt 0:02:48]} 16. Kd2 {[%emt 0:01:50]} Bh7 {[%emt 0:01:19]} 17. g5 {[%emt 0:03:59]} Nxe5 {[%emt 0:00:26]} 18. fxe5 {[%emt 0:00:45]} Ne4+ {[%emt 0:00:05]} 19. Nxe4 {[%emt 0:01:11]} Bxe4 {[%emt 0:00:05]} 20. Rhf1 {[%emt 0:00:12]} Bb4+ {[%emt 0:00:29]} 21. Kc1 {[%emt 0:00:06]} hxg5 {[%emt 0:00:18]} 22. Bxg5 {[%emt 0:00:56]} Be7 {[%emt 0:00:05]} 23. Bxe7 {[%emt 0:02:14]} Kxe7 {[%emt 0:00:14]} 24. h5 {[%emt 0:00:04]} Rag8 {[%emt 0:03:36]} 25. Kd2 {[%emt 0:02:46]} g6 {[%emt 0:00:06]} 26. hxg6 {[%emt 0:07:48]} Rxg6 {[%emt 0:00:28]} 27. Rg1 Rh2 {[%emt 0:01:00]} 28. Rxg6 {[%emt 0:02:14]} Bxg6 {[%emt 0:00:05]} 29. Ke3 {[%emt 0:00:08]} Rh4 {[%emt 0:00:33]} 30. Bf3 {[%emt 0:04:46]} Rh3 {[%emt 0:00:45]} 31. Rh1 {[%emt 0:01:45]} Rxf3+ {[%emt 0:00:07]} 32. Kxf3 {[%emt 0:00:25]} Be4+ {[%emt 0:00:04]} 0-1

[Event "10th LBHM Open 2024"]
[Site "Pune"]
[Date "2024.05.21"]
[Round "5.4"]
[White "Nitin, S.."]
[Black "Bhuvan Krishna Prasanth"]
[Result "1-0"]
[ECO "C26"]
[WhiteElo "2356"]
[BlackElo "1930"]
[PlyCount "79"]
[EventDate "2024.05.21"]
[EventType "swiss"]
[EventCountry "IND"]
[TimeControl "5400+30"]

1. e4 {[%emt 0:00:34]} e5 {[%emt 0:00:10]} 2. Nc3 {[%emt 0:00:16]} Nf6 {[%emt 0:00:13]} 3. g3 {[%emt 0:01:00]} Bc5 {[%emt 0:00:26]} 4. Bg2 {[%emt 0:00:22]} O-O {[%emt 0:00:25]} 5. Nge2 {[%emt 0:01:50]} d6 {[%emt 0:01:47]} 6. O-O {[%emt 0:00:24]} Nc6 {[%emt 0:00:55]} 7. Na4 {[%emt 0:02:13]} Bb6 {[%emt 0:00:16]} 8. Nxb6 {[%emt 0:03:28]} axb6 {[%emt 0:00:13]} 9. d3 {[%emt 0:00:38]} h6 {[%emt 0:02:27]} 10. f4 {[%emt 0:00:31]} d5 {[%emt 0:02:48]} 11. fxe5 {[%emt 0:07:14]} Nxe5 {[%emt 0:00:10]} 12. d4 {[%emt 0:00:51]} Ng6 {[%emt 0:00:07]} 13. exd5 {[%emt 0:03:11]} Re8 {[%emt 0:01:24]} 14. Nc3 {[%emt 0:02:50]} b5 {[%emt 0:22:58]} 15. Nxb5 {[%emt 0:09:26]} Bg4 {[%emt 0:01:27]} 16. Bf3 {[%emt 0:00:12]} Bh3 {[%emt 0:00:15]} 17. Re1 {[%emt 0:00:54]} Qd7 {[%emt 0:01:31]} 18. Nc3 {[%emt 0:05:18]} Qf5 {[%emt 0:02:50]} 19. Bd2 {[%emt 0:11:03]} Ng4 {[%emt 0:05:43]} 20. Ne4 {[%emt 0:01:19]} Ra6 {[%emt 0:07:29]} 21. d6 {[%emt 0:07:17]} Kh7 {[%emt 0:07:34]} 22. dxc7 {[%emt 0:07:28]} Rae6 {[%emt 0:00:12]} 23. b4 {[%emt 0:09:44]} R6e7 {[%emt 0:05:00]} 24. c3 {[%emt 0:03:00]} f6 {[%emt 0:00:56]} 25. c8=Q {[%emt 0:21:57]} Qxc8 {[%emt 0:04:28]} 26. Nd6 {[%emt 0:00:00]} Qd7 {[%emt 0:02:39]} 27. Nxe8 {[%emt 0:00:00]} f5 {[%emt 0:00:13]} 28. Rxe7 {[%emt 0:00:00]} Nxe7 {[%emt 0:00:06]} 29. Qe2 {[%emt 0:00:00]} Qxe8 {[%emt 0:00:13]} 30. Re1 {[%emt 0:00:00]} Qf7 {[%emt 0:00:22]} 31. Qxe7 {[%emt 0:00:00]} Qxa2 {[%emt 0:00:07]} 32. Qe2 {[%emt 0:00:00]} Qf7 {[%emt 0:00:06]} 33. Bf4 {[%emt 0:00:00]} g5 {[%emt 0:00:12]} 34. Qe7 {[%emt 0:00:00]} Kg6 {[%emt 0:00:05]} 35. Re6+ {[%emt 0:00:00]} Nf6 {[%emt 0:00:06]} 36. Bh5+ {[%emt 0:00:00]} Kxh5 {[%emt 0:00:08]} 37. Qxf7+ {[%emt 0:00:00]} Kg4 {[%emt 0:00:06]} 38. Qxf6 {[%emt 0:00:00]} gxf4 {[%emt 0:00:07]} 39. Qh4+ {[%emt 0:00:00]} Kf3 {[%emt 0:00:05]} 40. Qxf4# {[%emt 0:00:00]} 1-0

[Event "10th LBHM Open 2024"]
[Site "Pune"]
[Date "2024.05.21"]
[Round "5.5"]
[White "Ratnakaran, K.."]
[Black "Daksh Goyal"]
[Result "1-0"]
[ECO "B30"]
[WhiteElo "2275"]
[BlackElo "1910"]
[PlyCount "71"]
[EventDate "2024.05.21"]
[EventType "swiss"]
[EventCountry "IND"]
[TimeControl "5400+30"]

1. e4 {[%emt 0:00:01]} c5 {[%emt 0:00:05]} 2. Nf3 {[%emt 0:00:05]} Nc6 {[%emt 0:00:10]} 3. Bb5 {[%emt 0:00:05]} Nf6 {[%emt 0:00:10]} 4. e5 {[%emt 0:00:07]} Nd5 {[%emt 0:00:06]} 5. O-O {[%emt 0:00:08]} Nc7 {[%emt 0:00:21]} 6. a4 {[%emt 0:00:07]} g6 {[%emt 0:07:56]} 7. Re1 {[%emt 0:00:15]} Bg7 {[%emt 0:01:15]} 8. Nc3 {[%emt 0:00:06]} O-O {[%emt 0:05:50]} 9. Bxc6 {[%emt 0:00:20]} dxc6 {[%emt 0:01:42]} 10. h3 {[%emt 0:00:05]} f5 {[%emt 0:10:33]} 11. d3 {[%emt 0:00:39]} Ne6 {[%emt 0:04:03]} 12. Ne2 {[%emt 0:00:13]} h6 {[%emt 0:09:33]} 13. c3 {[%emt 0:03:19]} b6 {[%emt 0:03:23]} 14. a5 {[%emt 0:00:25]} Ba6 {[%emt 0:02:18]} 15. Qb3 {[%emt 0:05:04]} Qd5 {[%emt 0:16:20]} 16. c4 {[%emt 0:00:07]} Qd8 {[%emt 0:00:54]} 17. Nf4 {[%emt 0:00:40]} Nxf4 {[%emt 0:01:58]} 18. Bxf4 g5 {[%emt 0:02:46]} 19. Bxg5 {[%emt 0:01:20]} hxg5 {[%emt 0:00:20]} 20. Nxg5 {[%emt 0:00:06]} bxa5 {[%emt 0:19:30]} 21. Qd1 {[%emt 0:01:21]} Qe8 {[%emt 0:10:50]} 22. Ne6 {[%emt 0:04:00]} Qg6 {[%emt 0:00:14]} 23. Nf4 {[%emt 0:00:48]} Qh6 {[%emt 0:00:50]} 24. Qf3 {[%emt 0:00:10]} Bb7 {[%emt 0:00:48]} 25. Rxa5 {[%emt 0:00:15]} a6 {[%emt 0:00:11]} 26. Rxc5 {[%emt 0:00:13]} e6 {[%emt 0:00:23]} 27. d4 {[%emt 0:03:23]} Rfd8 {[%emt 0:00:49]} 28. d5 {[%emt 0:00:15]} cxd5 {[%emt 0:00:16]} 29. Rc7 {[%emt 0:00:17]} Rab8 {[%emt 0:00:42]} 30. Nh5 {[%emt 0:00:08]} Bh8 {[%emt 0:00:37]} 31. Qg3+ {[%emt 0:01:08]} Kf8 {[%emt 0:00:02]} 32. Qa3+ {[%emt 0:00:06]} Kg8 {[%emt 0:00:14]} 33. Re3 {[%emt 0:00:10]} f4 {[%emt 0:01:07]} 34. Nxf4 {[%emt 0:00:29]} Qxf4 {[%emt 0:00:16]} 35. Rg3+ {[%emt 0:00:06]} Qxg3 {[%emt 0:00:27]} 36. Qxg3+ {[%emt 0:00:06]} 1-0

[Event "10th LBHM Open 2024"]
[Site "Pune"]
[Date "2024.05.21"]
[Round "5.6"]
[White "Dere Pushkar"]
[Black "Khairmode Dhanashree"]
[Result "1-0"]
[ECO "B90"]
[WhiteElo "2209"]
[BlackElo "1892"]
[PlyCount "91"]
[EventDate "2024.05.21"]
[EventType "swiss"]
[EventCountry "IND"]
[TimeControl "5400+30"]

1. e4 {[%emt 0:00:03]} c5 {[%emt 0:00:35]} 2. Nf3 {[%emt 0:00:06]} d6 {[%emt 0:00:07]} 3. d4 {[%emt 0:00:04]} cxd4 {[%emt 0:00:07]} 4. Nxd4 {[%emt 0:00:05]} Nf6 {[%emt 0:00:04]} 5. Nc3 {[%emt 0:00:11]} a6 {[%emt 0:00:08]} 6. Rg1 {[%emt 0:00:11]} e5 {[%emt 0:00:11]} 7. Nb3 {[%emt 0:00:33]} h5 {[%emt 0:00:18]} 8. Be3 {[%emt 0:04:19]} Be6 {[%emt 0:03:01]} 9. h3 {[%emt 0:00:19]} h4 {[%emt 0:04:03]} 10. g4 {[%emt 0:00:13]} hxg3 {[%emt 0:03:33]} 11. Rxg3 {[%emt 0:00:36]} Nbd7 {[%emt 0:01:21]} 12. Qf3 {[%emt 0:13:27]} b5 {[%emt 0:10:08]} 13. a4 {[%emt 0:04:41]} b4 {[%emt 0:01:21]} 14. Nd5 {[%emt 0:00:16]} Bxd5 {[%emt 0:00:53]} 15. exd5 {[%emt 0:00:05]} Nb6 {[%emt 0:02:22]} 16. Bg5 {[%emt 0:10:08]} Be7 {[%emt 0:03:17]} 17. a5 {[%emt 0:04:50]} Nbxd5 {[%emt 0:06:27]} 18. Bxf6 {[%emt 0:00:40]} Nxf6 {[%emt 0:00:05]} 19. Qc6+ {[%emt 0:01:16]} Kf8 {[%emt 0:00:37]} 20. Bxa6 {[%emt 0:01:04]} Rh4 {[%emt 0:08:07]} 21. Bb7 {[%emt 0:02:50]} Ra7 {[%emt 0:01:24]} 22. a6 {[%emt 0:01:16]} Ne4 {[%emt 0:04:21]} 23. Rg4 {[%emt 0:01:55]} f5 {[%emt 0:01:03]} 24. Rxh4 {[%emt 0:08:32]} Bxh4 {[%emt 0:00:06]} 25. O-O-O {[%emt 0:00:03]} Bxf2 {[%emt 0:01:32]} 26. Rf1 {[%emt 0:02:23]} Be3+ {[%emt 0:00:42]} 27. Kb1 {[%emt 0:00:15]} Bf4 {[%emt 0:00:23]} 28. Qb5 {[%emt 0:01:35]} g5 {[%emt 0:04:12]} 29. Qxb4 {[%emt 0:02:44]} Nf6 {[%emt 0:13:01]} 30. Rd1 {[%emt 0:02:31]} Ne8 31. Na5 {[%emt 0:06:48]} Qc7 {[%emt 0:04:11]} 32. Qb5 {[%emt 0:01:13]} Be3 {[%emt 0:01:33]} 33. Nc6 {[%emt 0:00:34]} Qb6 {[%emt 0:01:11]} 34. Nxa7 {[%emt 0:01:22]} Qxa7 {[%emt 0:00:07]} 35. Qd7 {[%emt 0:00:13]} f4 {[%emt 0:00:55]} 36. Qf5+ {[%emt 0:00:12]} Ke7 {[%emt 0:00:05]} 37. Qxg5+ {[%emt 0:00:06]} Kd7 {[%emt 0:00:09]} 38. Qf5+ {[%emt 0:00:20]} Kd8 {[%emt 0:00:07]} 39. h4 {[%emt 0:00:50]} Qb6 {[%emt 0:00:20]} 40. h5 {[%emt 0:00:22]} Bd4 {[%emt 0:00:12]} 41. c3 {[%emt 0:00:15]} Bc5 {[%emt 0:00:39]} 42. h6 {[%emt 0:00:42]} Ba3 {[%emt 0:00:08]} 43. Rd2 {[%emt 0:02:05]} Qg1+ {[%emt 0:00:17]} 44. Ka2 {[%emt 0:00:10]} Bc5 {[%emt 0:00:11]} 45. h7 {[%emt 0:00:19]} Qg7 {[%emt 0:00:06]} 46. Rh2 {[%emt 0:00:08]} 1-0

[Event "10th LBHM Open 2024"]
[Site "Pune"]
[Date "2024.05.21"]
[Round "5.7"]
[White "Koustuv Dash"]
[Black "Gyana Sai Santhosh M"]
[Result "1/2-1/2"]
[ECO "E44"]
[WhiteElo "2133"]
[BlackElo "1874"]
[PlyCount "142"]
[EventDate "2024.05.21"]
[EventType "swiss"]
[EventCountry "IND"]
[TimeControl "5400+30"]

1. d4 {[%emt 0:00:06]} Nf6 {[%emt 0:00:30]} 2. c4 {[%emt 0:00:04]} e6 {[%emt 0:00:09]} 3. Nc3 {[%emt 0:00:04]} Bb4 {[%emt 0:00:08]} 4. e3 {[%emt 0:00:06]} b6 {[%emt 0:05:42]} 5. Nge2 {[%emt 0:00:16]} Bb7 {[%emt 0:03:40]} 6. a3 {[%emt 0:00:06]} Bxc3+ {[%emt 0:07:16]} 7. Nxc3 {[%emt 0:00:02]} Ne4 {[%emt 0:01:36]} 8. Nxe4 {[%emt 0:08:59]} Bxe4 {[%emt 0:00:09]} 9. Qg4 {[%emt 0:00:16]} Bg6 {[%emt 0:01:16]} 10. h4 {[%emt 0:00:06]} h5 {[%emt 0:09:43]} 11. Qd1 {[%emt 0:13:56]} d6 {[%emt 0:15:09]} 12. Be2 {[%emt 0:01:37]} Be4 {[%emt 0:00:33]} 13. f3 Bg6 {[%emt 0:02:37]} 14. e4 {[%emt 0:09:24]} Nd7 {[%emt 0:06:33]} 15. Bg5 {[%emt 0:00:31]} f6 {[%emt 0:01:32]} 16. Be3 {[%emt 0:00:33]} a5 {[%emt 0:00:13]} 17. c5 {[%emt 0:21:28]} dxc5 {[%emt 0:04:22]} 18. dxc5 {[%emt 0:00:08]} Nxc5 {[%emt 0:00:25]} 19. Bxc5 {[%emt 0:01:32]} Qxd1+ {[%emt 0:00:48]} 20. Rxd1 {[%emt 0:00:04]} bxc5 {[%emt 0:00:04]} 21. Bb5+ {[%emt 0:00:15]} Kf8 {[%emt 0:00:16]} 22. Rc1 {[%emt 0:01:34]} Be8 {[%emt 0:01:22]} 23. Bxe8 {[%emt 0:01:53]} Kxe8 {[%emt 0:00:06]} 24. Rxc5 {[%emt 0:00:13]} Ra7 {[%emt 0:06:55]} 25. O-O {[%emt 0:05:29]} e5 {[%emt 0:10:03]} 26. f4 {[%emt 0:04:47]} exf4 {[%emt 0:00:05]} 27. Rxf4 {[%emt 0:02:07]} Ke7 {[%emt 0:00:15]} 28. e5 {[%emt 0:00:17]} Rb7 {[%emt 0:03:43]} 29. exf6+ {[%emt 0:14:26]} gxf6 {[%emt 0:00:06]} 30. Rc2 {[%emt 0:00:34]} Rhb8 {[%emt 0:02:26]} 31. Re2+ {[%emt 0:09:14]} Kf7 {[%emt 0:00:08]} 32. Ref2 {[%emt 0:00:30]} Rb6 {[%emt 0:02:00]} 33. Rf5 {[%emt 0:00:27]} Kg6 {[%emt 0:00:08]} 34. Kh2 {[%emt 0:01:32]} Ra6 {[%emt 0:02:45]} 35. Rc5 {[%emt 0:00:55]} Rb7 {[%emt 0:01:40]} 36. Rf3 {[%emt 0:01:28]} a4 {[%emt 0:05:22]} 37. Rg3+ {[%emt 0:01:51]} Kh6 {[%emt 0:00:05]} 38. Rg8 {[%emt 0:01:12]} Rd6 {[%emt 0:00:59]} 39. Rh8+ {[%emt 0:00:45]} Kg6 {[%emt 0:01:00]} 40. Rcxh5 {[%emt 0:00:03]} Rxb2 {[%emt 0:00:16]} 41. R8h6+ {[%emt 0:00:23]} Kf7 {[%emt 0:00:12]} 42. Rh7+ {[%emt 0:00:15]} Kg6 {[%emt 0:00:42]} 43. R5h6+ {[%emt 0:00:01]} Kf5 {[%emt 0:00:08]} 44. Rxc7 {[%emt 0:01:04]} Rdd2 {[%emt 0:00:18]} 45. Rg7 {[%emt 0:02:27]} Rb3 {[%emt 0:00:26]} 46. Rh5+ {[%emt 0:00:00]} Ke6 {[%emt 0:00:07]} 47. Ra5 {[%emt 0:00:00]} Rxa3 {[%emt 0:00:35]} 48. Rg4 {[%emt 0:00:30]} Raa2 {[%emt 0:01:58]} 49. h5 {[%emt 0:00:39]} Rd7 {[%emt 0:00:19]} 50. Ra6+ {[%emt 0:00:42]} Kf5 {[%emt 0:00:14]} 51. Rg3 {[%emt 0:00:09]} Rh7 {[%emt 0:00:41]} 52. Ra5+ {[%emt 0:00:10]} Ke6 {[%emt 0:00:09]} 53. Re3+ {[%emt 0:00:30]} Kd6 {[%emt 0:00:11]} 54. Kh3 {[%emt 0:00:22]} Rb2 {[%emt 0:02:38]} 55. g4 {[%emt 0:00:38]} Rb3 {[%emt 0:01:03]} 56. Ra6+ {[%emt 0:00:33]} Kd5 {[%emt 0:00:10]} 57. Rg3 {[%emt 0:01:13]} f5 {[%emt 0:02:21]} 58. Ra5+ {[%emt 0:00:15]} Ke6 {[%emt 0:00:09]} 59. Ra6+ {[%emt 0:00:23]} Ke5 {[%emt 0:00:25]} 60. Ra5+ {[%emt 0:00:15]} Ke6 {[%emt 0:00:11]} 61. Rxf5 {[%emt 0:01:07]} Rxg3+ {[%emt 0:00:17]} 62. Kxg3 {[%emt 0:00:02]} Ra7 {[%emt 0:00:06]} 63. Rf1 {[%emt 0:00:53]} a3 {[%emt 0:00:07]} 64. Ra1 {[%emt 0:00:37]} Kf6 {[%emt 0:00:42]} 65. Kh4 {[%emt 0:00:29]} a2 {[%emt 0:00:07]} 66. Rf1+ {[%emt 0:00:19]} Kg7 {[%emt 0:00:14]} 67. Ra1 {[%emt 0:00:10]} Ra5 {[%emt 0:00:16]} 68. g5 {[%emt 0:00:24]} Ra4+ {[%emt 0:00:07]} 69. Kg3 {[%emt 0:00:09]} Ra5 {[%emt 0:00:17]} 70. Kh4 {[%emt 0:00:13]} Ra4+ {[%emt 0:00:04]} 71. Kg3 {[%emt 0:00:05]} Ra5 {[%emt 0:00:02]} 1/2-1/2